fUSD/lending_fUSD_20250227
["ID","MTS","AMOUNT","RATE_DAILY","PERIOD"]
[354739542,1740658141339,-500.0,0.00054794,120]
[354739543,1740658141364,-500.0,0.00054794,120]
[354739544,1740658141388,-505.042429,0.00054794,120]
[354739545,1740658141413,-500.0,0.00054794,120]
[354739546,1740658141437,-501.97969199,0.00054794,120]
[354739547,1740658141462,-501.48144669,0.00054794,120]
[354739548,1740658141487,-545.51936661,0.00054794,120]
[354739549,1740658141511,-500.0,0.00054794,120]
[354739550,1740658141536,-505.01942609,0.00054794,120]
[354739551,1740658141560,-500.0,0.00054794,120]
[354739552,1740658141584,-500.0,0.00054794,120]
[354739553,1740658141609,-500.98300575,0.00054794,120]
[354739554,1740658141633,-500.0,0.00054794,120]
[354739555,1740658141657,-500.0,0.00054794,120]
[354739556,1740658141681,-506.43549723,0.00054794,120]
[354739557,1740658141810,-500.0,0.00054794,120]
[354739558,1740658141844,-500.0,0.00054794,120]
[354739559,1740658141870,-498.56412806,0.00054794,120]
[354739560,1740658141895,-500.0,0.00054794,120]
[354739561,1740658141921,-506.89220691,0.00054794,120]
[354739562,1740658141945,-500.0,0.00054794,120]
[354739563,1740658141970,-501.66570651,0.00054794,120]
[354739564,1740658141995,-500.0,0.00054794,120]
[354739565,1740658142020,-500.0,0.00054794,120]
[354739566,1740658142047,-500.92910917,0.00054794,120]
[354739567,1740658142071,-500.0,0.00054794,120]
[354739568,1740658142095,-500.0,0.00054794,120]
[354739569,1740658142119,-500.0,0.00054794,120]
[354739570,1740658142142,-503.10815778,0.00054794,120]
[354739571,1740658142166,-500.0,0.00054794,120]
[354739572,1740658142190,-500.0,0.00054794,120]
[354739573,1740658142214,-500.0,0.00054794,120]
[354739574,1740658142238,-596.86356393,0.00054794,120]
[354739575,1740658142261,-501.38430211,0.00054794,120]
[354739576,1740658142287,-500.0,0.00054794,120]
[354739577,1740658142313,-500.0,0.00054794,120]
[354739578,1740658142337,-500.0,0.00054794,120]
[354739579,1740658142361,-1493.330412,0.00054794,120]
[354739580,1740658142386,-500.0,0.00054794,120]
[354739581,1740658142410,-500.0,0.00054794,120]
[354739582,1740658142435,-500.0,0.00054794,120]
[354739583,1740658142458,-500.0,0.00054794,120]
[354739584,1740658142483,-503.71304176,0.00054794,120]
[354739585,1740658142507,-504.60924997,0.00054794,120]
[354739586,1740658142531,-505.2704024,0.00054794,120]
[354739587,1740658142556,-502.35319824,0.00054794,120]
[354739588,1740658142581,-500.0,0.00054794,120]
[354739589,1740658142605,-513.19183642,0.00054794,120]
[354739590,1740658142630,-500.0,0.00054794,120]
[354739591,1740658142654,-502.71789334,0.00054794,120]
[354739592,1740658142678,-510.82231195,0.00054794,120]
[354739593,1740658142702,-2409.33,0.00054794,120]
[354739594,1740658142729,-500.0,0.00054794,120]
[354739595,1740658142753,-500.0,0.00054794,120]
[354739596,1740658142779,-506.09252861,0.00054794,120]
[354739597,1740658142805,-500.0,0.00054794,120]
[354739598,1740658142830,-500.0,0.00054794,120]
[354739599,1740658142855,-500.0,0.00054794,120]
[354739600,1740658142880,-502.71205044,0.00054794,120]
[354739601,1740658142904,-500.0,0.00054794,120]
[354739602,1740658142928,-500.0,0.00054794,120]
[354739603,1740658142952,-500.0,0.00054794,120]
[354739604,1740658142976,-509.24787029,0.00054794,120]
[354739605,1740658143000,-500.0,0.00054794,120]
[354739606,1740658143026,-500.0,0.00054794,120]
[354739607,1740658143055,-500.0,0.00054794,120]
[354739608,1740658143081,-500.0,0.00054794,120]
[354739609,1740658143107,-497.23567214,0.00054794,120]
[354739610,1740658143133,-500.0,0.00054794,120]
[354739611,1740658143158,-500.0,0.00054794,120]
[354739612,1740658143185,-500.0,0.00054794,120]
[354739613,1740658143213,-500.0,0.00054794,120]
[354739614,1740658143240,-516.43002987,0.00054794,120]
[354739615,1740658143265,-500.0,0.00054794,120]
[354739616,1740658143294,-510.4880179,0.00054794,120]
[354739617,1740658143320,-500.0,0.00054794,120]
[354739618,1740658143346,-500.0,0.00054794,120]
[354739619,1740658143372,-500.0,0.00054794,120]
[354739620,1740658143399,-500.0,0.00054794,120]
[354739621,1740658143425,-500.0,0.00054794,120]
[354739622,1740658143452,-506.5163603,0.00054794,120]
[354739623,1740658143479,-513.46566462,0.00054794,120]
[354739624,1740658143508,-500.0,0.00054794,120]
[354739625,1740658143539,-500.0,0.00054794,120]
[354739626,1740658143567,-633.35515999,0.00054794,120]
[354739627,1740658143594,-500.0,0.00054794,120]
[354739628,1740658143620,-1026.92115204,0.00054794,120]
[354739629,1740658143647,-500.0,0.00054794,120]
[354739630,1740658143672,-500.0,0.00054794,120]
[354739631,1740658143697,-500.0,0.00054794,120]
[354739632,1740658143723,-500.0,0.00054794,120]
[354739633,1740658143751,-500.0,0.00054794,120]
[354739634,1740658143782,-500.0,0.00054794,120]
[354739635,1740658143809,-509.14630326,0.00054794,120]
[354739636,1740658143835,-500.0,0.00054794,120]
[354739637,1740658143861,-500.0,0.00054794,120]
[354739638,1740658143886,-500.0,0.00054794,120]
[354739639,1740658143913,-500.0,0.00054794,120]
[354739640,1740658143939,-498.36481042,0.00054794,120]
[354739641,1740658143964,-512.43626969,0.00054794,120]
[354739642,1740658143990,-500.0,0.00054794,120]
[354739643,1740658144015,-506.46381038,0.00054794,120]
[354739644,1740658144041,-465.31643426,0.00054794,120]
[354739645,1740658144185,-509.45827411,0.00054794,120]
[354739646,1740658144212,-500.99037366,0.00054794,120]
[354739647,1740658144239,-509.24578128,0.00054794,120]
[354739648,1740658144265,-515.39507466,0.00054794,120]
[354739649,1740658144293,-501.56880534,0.00054794,120]
[354739650,1740658144321,-500.0,0.00054794,120]
[354739651,1740658144346,-500.0,0.00054794,120]
[354739652,1740658144372,-500.0,0.00054794,120]
[354739653,1740658144398,-500.0,0.00054794,120]
[354739654,1740658144424,-500.0,0.00054794,120]
[354739655,1740658144450,-500.0,0.00054794,120]
[354739656,1740658144475,-502.66361039,0.00054794,120]
[354739657,1740658144501,-500.0,0.00054794,120]
[354739658,1740658144528,-500.0,0.00054794,120]
[354739659,1740658144556,-500.0,0.00054794,120]
[354739660,1740658144582,-500.0,0.00054794,120]
[354739661,1740658144608,-500.0,0.00054794,120]
[354739662,1740658144634,-500.0,0.00054794,120]
[354739663,1740658144659,-500.0,0.00054794,120]
[354739664,1740658144684,-500.0,0.00054794,120]
[354739665,1740658144709,-507.73505819,0.00054794,120]
[354739666,1740658144735,-201.77838673,0.00054794,120]
[354739667,1740658144760,-500.0,0.00054794,120]
[354739668,1740658144787,-500.0,0.00054794,120]
[354739669,1740658144813,-307.56763628,0.00054794,120]
[354739670,1740658144839,-500.0,0.00054794,120]
[354739671,1740658144865,-500.0,0.00054794,120]
[354739672,1740658144890,-500.0,0.00054794,120]
[354739673,1740658144916,-506.04138199,0.00054794,120]
[354739674,1740658144940,-505.18412821,0.00054794,120]
[354739675,1740658144964,-500.0,0.00054794,120]
[354739676,1740658144988,-500.0,0.00054794,120]
[354739677,1740658145014,-500.0,0.00054794,120]
[354739678,1740658145040,-500.0,0.00054794,120]
[354739679,1740658145066,-642.92,0.00054794,120]
[354739680,1740658145090,-501.42095163,0.00054794,120]
[354739681,1740658145115,-500.0,0.00054794,120]
[354739682,1740658145139,-502.49099568,0.00054794,120]
[354739683,1740658145163,-505.65769127,0.00054794,120]
[354739684,1740658145188,-500.0,0.00054794,120]
[354739685,1740658145212,-500.0,0.00054794,120]
[354739686,1740658145237,-500.0,0.00054794,120]
[354739687,1740658145263,-508.72790245,0.00054794,120]
[354739688,1740658145287,-500.0,0.00054794,120]
[354739689,1740658145313,-500.0,0.00054794,120]
[354739690,1740658145338,-500.0,0.00054794,120]
[354739691,1740658145363,-500.0,0.00054794,120]
[354739692,1740658145387,-501.85562944,0.00054794,120]
[354739693,1740658145412,-331.39289642,0.00054794,120]
[354739694,1740658145436,-541.80317291,0.00054794,120]
[354739695,1740658145461,-504.67188112,0.00054794,120]
[354739696,1740658145487,-512.60710705,0.00054794,120]
[354739697,1740658145512,-500.0,0.00054794,120]
[354739698,1740658145537,-505.93548831,0.00054794,120]
[354739699,1740658145563,-503.71063316,0.00054794,120]
[354739700,1740658145588,-500.0,0.00054794,120]
[354739701,1740658145613,-504.57968434,0.00054794,120]
[354739702,1740658145638,-500.0,0.00054794,120]
[354739703,1740658145662,-500.0,0.00054794,120]
[354739704,1740658145687,-500.0,0.00054794,120]
[354739705,1740658145712,-500.0,0.00054794,120]
[354739706,1740658145739,-500.0,0.00054794,120]
[354739707,1740658145763,-498.4790424,0.00054794,120]
[354739708,1740658145788,-506.39819794,0.00054794,120]
[354739709,1740658145813,-500.0,0.00054794,120]
[354739710,1740658145838,-507.99489171,0.00054794,120]
[354739711,1740658145862,-501.66,0.00054794,120]
[354739712,1740658145886,-502.88764895,0.00054794,120]
[354739713,1740658145911,-500.0,0.00054794,120]
[354739714,1740658145935,-517.25891762,0.00054794,120]
[354739715,1740658145959,-500.0,0.00054794,120]
[354739716,1740658145983,-595.35,0.00054794,120]
[354739717,1740658146008,-500.0,0.00054794,120]
[354739718,1740658146032,-506.54086718,0.00054794,120]
[354739719,1740658146058,-500.0,0.00054794,120]
[354739720,1740658146082,-506.88643453,0.00054794,120]
[354739721,1740658146107,-500.0,0.00054794,120]
[354739722,1740658146130,-500.0,0.00054794,120]
[354739723,1740658146154,-500.0,0.00054794,120]
[354739724,1740658146180,-500.0,0.00054794,120]
[354739725,1740658146205,-200.0,0.00054794,120]
[354739726,1740658146231,-246.72060099,0.00054794,120]
[354739727,1740658146261,-500.0,0.00054794,120]
[354739728,1740658146287,-500.0,0.00054794,120]
[354739729,1740658146458,-500.0,0.00054794,120]
[354739730,1740658146485,-500.0,0.00054794,120]
[354739731,1740658146511,-507.25936591,0.00054794,120]
[354739732,1740658146539,-500.0,0.00054794,120]
[354739733,1740658146565,-500.0,0.00054794,120]
[354739734,1740658146592,-500.0,0.00054794,120]
[354739735,1740658146616,-500.0,0.00054794,120]
[354739736,1740658146641,-172.14889783,0.00054794,120]
[354739737,1740658146666,-500.0,0.00054794,120]
[354739738,1740658146690,-500.0,0.00054794,120]
[354739739,1740658146715,-500.0,0.00054794,120]
[354739740,1740658146749,-500.0,0.00054794,120]
[354739741,1740658146776,-504.24297748,0.00054794,120]
[354739742,1740658146803,-503.93384089,0.00054794,120]
[354739743,1740658146831,-500.0,0.00054794,120]
[354739744,1740658146855,-500.0,0.00054794,120]
[354739745,1740658146879,-500.0,0.00054794,120]
[354739746,1740658146904,-500.0,0.00054794,120]
[354739747,1740658146928,-500.0,0.00054794,120]
[354739748,1740658146952,-503.8996236,0.00054794,120]
[354739749,1740658146976,-500.0,0.00054794,120]
[354739750,1740658147000,-506.30296777,0.00054794,120]
[354739751,1740658147024,-500.0,0.00054794,120]
[354739752,1740658147050,-506.00913951,0.00054794,120]
[354739753,1740658147074,-504.45829698,0.00054794,120]
[354739754,1740658147098,-500.0,0.00054794,120]
[354739755,1740658147123,-500.0,0.00054794,120]
[354739756,1740658147147,-500.0,0.00054794,120]
[354739757,1740658147171,-521.7049488,0.00054794,120]
[354739758,1740658147196,-500.0,0.00054794,120]
[354739759,1740658147220,-506.38388238,0.00054794,120]
[354739760,1740658147244,-504.69775854,0.00054794,120]
[354739761,1740658147268,-500.0,0.00054794,120]
[354739762,1740658147294,-500.0,0.00054794,120]
[354739763,1740658147318,-500.0,0.00054794,120]
[354739764,1740658147343,-500.0,0.00054794,120]
[354739765,1740658147367,-503.15177188,0.00054794,120]
[354739766,1740658147393,-506.48857489,0.00054794,120]
[354739767,1740658147419,-533.87515314,0.00054794,120]
[354739768,1740658147445,-500.0,0.00054794,120]
[354739769,1740658147471,-500.0,0.00054794,120]
[354739770,1740658147497,-500.0,0.00054794,120]
[354739771,1740658147523,-500.0,0.00054794,120]
[354739772,1740658147550,-500.0,0.00054794,120]
[354739773,1740658147576,-500.0,0.00054794,120]
[354739774,1740658147603,-500.0,0.00054794,120]
[354739775,1740658147628,-505.33014539,0.00054794,120]
[354739776,1740658147653,-500.0,0.00054794,120]
[354739777,1740658147679,-513.44918571,0.00054794,120]
[354739778,1740658147703,-503.86890789,0.00054794,120]
[354739779,1740658147729,-500.0,0.00054794,120]
[354739780,1740658147758,-500.0,0.00054794,90]
[354739781,1740658147784,-500.0,0.00054794,120]
[354739782,1740658147809,-530.87246901,0.00054794,90]
[354739783,1740658147835,-498.31476857,0.00054794,120]
[354739784,1740658147862,-500.0,0.00054794,120]
[354739785,1740658147886,-500.0,0.00054794,120]
[354739786,1740658147911,-500.0,0.00054794,120]
[354739787,1740658147935,-500.0,0.00054794,120]
[354739788,1740658147959,-205.42186708,0.00054794,120]
[354739789,1740658147984,-500.0,0.00054794,120]
[354739790,1740658148010,-500.0,0.00054794,120]
[354739791,1740658148037,-500.0,0.00054794,120]
[354739792,1740658148063,-500.0,0.00054794,120]
[354739793,1740658148091,-500.0,0.00054794,120]
[354739794,1740658148118,-500.0,0.00054794,120]
[354739795,1740658148145,-500.0,0.00054794,120]
[354739796,1740658148172,-500.0,0.00054794,120]
[354739797,1740658148198,-500.0,0.00054794,120]
[354739798,1740658148225,-500.0,0.00054794,120]
[354739799,1740658148252,-500.0,0.00054794,120]
[354739800,1740658148278,-500.0,0.00054794,120]
[354739801,1740658148304,-500.0,0.00054794,120]
[354739802,1740658148330,-500.0,0.00054794,120]
[354739803,1740658148357,-500.0,0.00054794,120]
[354739804,1740658148383,-500.0,0.00054794,120]
[354739805,1740658148409,-525.35317248,0.00054794,120]
[354739806,1740658148440,-500.0,0.00054794,120]
[354739807,1740658148465,-500.0,0.00054794,120]
[354739808,1740658148491,-639.34,0.00054794,120]
[354739809,1740658148520,-500.0,0.00054794,120]
[354739810,1740658148560,-500.0,0.00054794,120]
[354739811,1740658148709,-500.0,0.00054794,120]
[354739812,1740658148738,-260.32110794,0.00054794,120]
[354739813,1740658148765,-523.29976202,0.00054794,120]
[354739814,1740658148809,-511.65338593,0.00054794,120]
[354739815,1740658148851,-500.0,0.00054794,120]
[354739816,1740658148882,-500.0,0.00054794,120]
[354739817,1740658148908,-500.0,0.00054794,120]
[354739818,1740658148934,-505.73396468,0.00054794,120]
[354739819,1740658148962,-500.0,0.00054794,120]
[354739820,1740658148990,-500.0,0.00054794,120]
[354739821,1740658149022,-500.0,0.00054794,120]
[354739822,1740658149055,-500.0,0.00054794,120]
[354739823,1740658149082,-500.0,0.00054794,120]
[354739824,1740658149110,-1204.92,0.00054794,120]
[354739825,1740658149135,-500.0,0.00054794,120]
[354739826,1740658149160,-500.0,0.00054794,120]
[354739827,1740658149186,-500.0,0.00054794,120]
[354739828,1740658149211,-500.02114146,0.00054794,120]
[354739829,1740658149236,-477.85551594,0.00054794,120]
[354739830,1740658149260,-500.0,0.00054794,120]
[354739831,1740658149284,-500.0,0.00054794,120]
[354739832,1740658149314,-500.0,0.00054794,120]
[354739833,1740658149340,-500.0,0.00054794,120]
[354739834,1740658149365,-500.0,0.00054794,120]
[354739835,1740658149388,-500.0,0.00054794,120]
[354739836,1740658149413,-504.29392721,0.00054794,120]
[354739837,1740658149440,-502.69684142,0.00054794,120]
[354739838,1740658149465,-500.0,0.00054794,120]
[354739839,1740658149491,-503.5276556,0.00054794,120]
[354739840,1740658149516,-500.0,0.00054794,120]
[354739841,1740658149544,-506.32537909,0.00054794,120]
[354739842,1740658149570,-500.0,0.00054794,120]
[354739843,1740658149597,-500.0,0.00054794,120]
[354739844,1740658149623,-384.23937361,0.00054794,120]
[354739845,1740658149648,-538.25795338,0.00054794,120]
[354739846,1740658149674,-1000.0,0.00054794,120]
[354739847,1740658149699,-500.0,0.00054794,120]
[354739848,1740658149724,-498.42590523,0.00054794,120]
[354739849,1740658149752,-500.0,0.00054794,120]
[354739850,1740658149779,-500.0,0.00054794,120]
[354739851,1740658149807,-3147.66,0.00054794,120]
[354739852,1740658149836,-498.30885617,0.00054794,120]
[354739853,1740658149860,-500.0,0.00054794,120]
[354739854,1740658149885,-500.0,0.00054794,120]
[354739855,1740658149910,-500.0,0.00054794,120]
[354739856,1740658149935,-500.0,0.00054794,120]
[354739857,1740658149960,-500.0,0.00054794,120]
[354739858,1740658149985,-500.0,0.00054794,120]
[354739859,1740658150009,-504.76045243,0.00054794,120]
[354739860,1740658150034,-500.0,0.00054794,120]
[354739861,1740658150061,-500.0,0.00054794,120]
[354739862,1740658150086,-500.0,0.00054794,120]
[354739863,1740658150110,-500.0,0.00054794,120]
[354739864,1740658150148,-500.0,0.00054794,120]
[354739865,1740658150175,-500.0,0.00054794,120]
[354739866,1740658150200,-633.32,0.00054794,120]
[354739867,1740658150225,-500.0,0.00054794,120]
[354739868,1740658150250,-500.0,0.00054794,120]
[354739869,1740658150277,-500.0,0.00054794,120]
[354739870,1740658150304,-1042.32813185,0.00054794,120]
[354739871,1740658150330,-500.0,0.00054794,120]
[354739872,1740658150354,-500.0,0.00054794,120]
[354739873,1740658150379,-500.0,0.00054794,120]
[354739874,1740658150404,-500.0,0.00054794,120]
[354739875,1740658150430,-500.0,0.00054794,120]
[354739876,1740658150455,-502.41943513,0.00054794,120]
[354739877,1740658150481,-500.0,0.00054794,120]
[354739878,1740658150507,-500.0,0.00054794,120]
[354739879,1740658150532,-500.0,0.00054794,120]
[354739880,1740658150560,-500.0,0.00054794,120]
[354739881,1740658150587,-500.0,0.00054794,120]
[354739882,1740658150613,-500.0,0.00054794,120]
[354739883,1740658150639,-500.0,0.00054794,120]
[354739884,1740658150664,-498.45125759,0.00054794,120]
[354739885,1740658150689,-500.0,0.00054794,120]
[354739886,1740658150713,-501.74183866,0.00054794,120]
[354739887,1740658150742,-500.0,0.00054794,120]
[354739888,1740658150767,-504.7755452,0.00054794,45]
[354739889,1740658150793,-500.0,0.00054794,120]
[354739890,1740658150948,-501.95976237,0.00054794,120]
[354739891,1740658150975,-500.0,0.00054794,120]
[354739892,1740658151002,-505.35550173,0.00054794,120]
[354739893,1740658151028,-500.0,0.00054794,120]
[354739894,1740658151055,-500.0,0.00054794,120]
[354739895,1740658151080,-515.07971047,0.00054794,120]
[354739896,1740658151105,-502.62731004,0.00054794,120]
[354739897,1740658151129,-500.0,0.00054794,120]
[354739898,1740658151155,-500.0,0.00054794,120]
[354739899,1740658151179,-503.52936065,0.00054794,120]
[354739900,1740658151203,-500.0,0.00054794,120]
[354739901,1740658151227,-500.0,0.00054794,120]
[354739902,1740658151251,-505.81920706,0.00054794,120]
[354739903,1740658151275,-440.89776248,0.00054794,120]
[354739904,1740658151301,-500.0,0.00054794,120]
[354739905,1740658151325,-500.0,0.00054794,120]
[354739906,1740658151350,-500.0,0.00054794,120]
[354739907,1740658151374,-509.11703212,0.00054794,120]
[354739908,1740658151398,-500.0,0.00054794,120]
[354739909,1740658151423,-506.4715985,0.00054794,120]
[354739910,1740658151448,-500.0,0.00054794,120]
[354739911,1740658151473,-500.0,0.00054794,120]
[354739912,1740658151498,-500.0,0.00054794,120]
[354739913,1740658151522,-605.83836566,0.00054794,120]
[354739914,1740658151547,-500.0,0.00054794,120]
[354739915,1740658151572,-500.0,0.00054794,120]
[354739916,1740658151598,-500.0,0.00054794,120]
[354739917,1740658151625,-498.52409941,0.00054794,120]
[354739918,1740658151660,-508.58458122,0.00054794,120]
[354739919,1740658151686,-500.0,0.00054794,120]
[354739920,1740658151710,-498.49931492,0.00054794,120]
[354739921,1740658151734,-505.92400504,0.00054794,120]
[354739922,1740658151762,-500.0,0.00054794,120]
[354739923,1740658151788,-500.0,0.00054794,120]
[354739924,1740658151812,-500.0,0.00054794,120]
[354739925,1740658151838,-503.72353012,0.00054794,120]
[354739926,1740658151862,-500.0,0.00054794,120]
[354739927,1740658151886,-500.0,0.00054794,120]
[354739928,1740658151910,-500.0,0.00054794,120]
[354739929,1740658151934,-500.0,0.00054794,120]
[354739930,1740658151959,-506.26574186,0.00054794,120]
[354739931,1740658151982,-502.85156592,0.00054794,120]
[354739932,1740658152007,-500.0,0.00054794,120]
[354739933,1740658152031,-500.0,0.00054794,120]
[354739934,1740658152058,-500.0,0.00054794,120]
[354739935,1740658152082,-500.0,0.00054794,120]
[354739936,1740658152107,-500.0,0.00054794,120]
[354739937,1740658152132,-500.0,0.00054794,120]
[354739938,1740658152157,-500.0,0.00054794,120]
[354739939,1740658152181,-500.0,0.00054794,120]
[354739940,1740658152208,-500.0,0.00054794,120]
[354739941,1740658152234,-506.03034887,0.00054794,120]
[354739942,1740658152260,-500.0,0.00054794,40]
[354739943,1740658152285,-500.0,0.00054794,120]
[354739944,1740658152312,-500.0,0.00054794,120]
[354739945,1740658152336,-500.0,0.00054794,120]
[354739946,1740658152362,-501.49828968,0.00054794,120]
[354739947,1740658152393,-500.0,0.00054794,120]
[354739948,1740658152418,-500.0,0.00054794,120]
[354739949,1740658152443,-500.0,0.00054794,120]
[354739950,1740658152467,-507.52170007,0.00054794,120]
[354739951,1740658152492,-500.0,0.00054794,120]
[354739952,1740658152516,-503.8944179,0.00054794,120]
[354739953,1740658152543,-500.0,0.00054794,120]
[354739954,1740658152568,-500.0,0.00054794,120]
[354739955,1740658152592,-515.52977866,0.00054794,120]
[354739956,1740658152616,-500.0,0.00054794,120]
[354739957,1740658152640,-500.0,0.00054794,120]
[354739958,1740658152665,-500.0,0.00054794,120]
[354739959,1740658152690,-520.53153261,0.00054794,120]
[354739960,1740658152714,-500.0,0.00054794,120]
[354739961,1740658152740,-500.0,0.00054794,120]
[354739962,1740658152764,-500.0,0.00054794,120]
[354739963,1740658152791,-500.0,0.00054794,120]
[354739964,1740658152816,-500.0,0.00054794,120]
[354739965,1740658152840,-500.0,0.00054794,120]
[354739966,1740658152966,-500.0,0.00054794,120]
[354739967,1740658152991,-500.0,0.00054794,120]
[354739968,1740658153016,-332.81153515,0.00054794,120]
[354739969,1740658153042,-500.0,0.00054794,120]
[354739970,1740658153067,-518.89798295,0.00054794,120]
[354739971,1740658153092,-500.0,0.00054794,120]
[354739972,1740658153118,-500.0,0.00054794,120]
[354739973,1740658153144,-500.0,0.00054794,120]
[354739974,1740658153172,-500.0,0.00054794,120]
[354739975,1740658153198,-500.0,0.00054794,120]
[354739976,1740658153223,-506.75765792,0.00054794,120]
[354739977,1740658153249,-500.0,0.00054794,120]
[354739978,1740658153274,-500.0,0.00054794,120]
[354739979,1740658153299,-500.0,0.00054794,120]
[354739980,1740658153324,-503.25686447,0.00054794,120]
[354739981,1740658153350,-500.0,0.00054794,120]
[354739982,1740658153376,-500.0,0.00054794,120]
[354739983,1740658153402,-500.0,0.00054794,120]
[354739984,1740658153428,-500.0,0.00054794,120]
[354739985,1740658153453,-500.0,0.00054794,120]
[354739986,1740658153480,-500.0,0.00054794,120]
[354739987,1740658153508,-501.42155785,0.00054794,120]
[354739988,1740658153535,-500.0,0.00054794,120]
[354739989,1740658153562,-500.0,0.00054794,120]
[354739990,1740658153588,-500.0,0.00054794,120]
[354739991,1740658153615,-500.0,0.00054794,120]
[354739992,1740658153641,-500.0,0.00054794,120]
[354739993,1740658153668,-500.0,0.00054794,120]
[354739994,1740658153692,-500.0,0.00054794,120]
[354739995,1740658153717,-500.0,0.00054794,120]
[354739996,1740658153746,-500.0,0.00054794,120]
[354739997,1740658153773,-500.0,0.00054794,120]
[354739998,1740658153799,-500.0,0.00054794,120]
[354739999,1740658153824,-506.30411473,0.00054794,120]
[354740000,1740658153850,-500.0,0.00054794,120]
[354740001,1740658153875,-500.0,0.00054794,120]
[354740002,1740658153899,-500.0,0.00054794,120]
[354740003,1740658153924,-500.0,0.00054794,120]
[354740004,1740658153952,-500.0,0.00054794,120]
[354740005,1740658153976,-500.0,0.00054794,120]
[354740006,1740658154001,-500.0,0.00054794,120]
[354740007,1740658154025,-498.06611924,0.00054794,120]
[354740008,1740658154051,-6720.06,0.00054794,120]
[354740009,1740658154076,-500.0,0.00054794,120]
[354740010,1740658154100,-500.0,0.00054794,120]
[354740011,1740658154125,-500.0,0.00054794,120]
[354740012,1740658154150,-2349.02,0.00054794,120]
[354740013,1740658154174,-500.0,0.00054794,120]
[354740014,1740658154198,-500.0,0.00054794,120]
[354740015,1740658154223,-500.0,0.00054794,120]
[354740016,1740658154246,-543.03688606,0.00054794,120]
[354740017,1740658154271,-500.0,0.00054794,120]
[354740018,1740658154295,-509.54401475,0.00054794,120]
[354740019,1740658154321,-500.0,0.00054794,120]
[354740020,1740658154348,-501.20602036,0.00054794,120]
[354740021,1740658154373,-500.0,0.00054794,120]
[354740022,1740658154399,-500.0,0.00054794,120]
[354740023,1740658154423,-500.0,0.00054794,120]
[354740024,1740658154449,-3132.25,0.00054794,120]
[354740025,1740658154474,-500.0,0.00054794,120]
[354740026,1740658154499,-500.0,0.00054794,120]
[354740027,1740658154524,-500.0,0.00054794,120]
[354740028,1740658154551,-500.0,0.00054794,120]
[354740029,1740658154575,-500.0,0.00054794,120]
[354740030,1740658154600,-505.94444389,0.00054794,120]
[354740031,1740658154626,-500.0,0.00054794,120]
[354740032,1740658154652,-500.0,0.00054794,120]
[354740033,1740658154678,-500.0,0.00054794,120]
[354740034,1740658154703,-500.0,0.00054794,120]
[354740035,1740658154731,-992.56,0.00054794,120]
[354740036,1740658154758,-500.0,0.00054794,120]
[354740037,1740658154783,-600.91361076,0.00054794,120]
[354740038,1740658154812,-500.0,0.00054794,120]
[354740039,1740658154840,-500.0,0.00054794,120]
[354740040,1740658154972,-500.0,0.00054794,120]
[354740041,1740658155000,-500.0,0.00054794,120]